2CCN - Level 2 Cost Centre Name,,9CCN - Level 9 Cost Centre Name,9CCC - Level 9 Cost Centre Code,9AN - Level 9 Account Name,9AC - Level 9 Account Code,Date posted,Date of transaction,Merchant Name,Merchant City,Merchant State,Merchant Zip Code,Originating Account Name,Originating Account Number,MCC/SIC Code,MCC Description,Original Amount,Currency,Conversion Rate,Billed Amount,Debit Credit,Reference Number,Statement Cycle,Account Name
Gloucester City Council,23UE,Museum of Gloucester,MU002,Catering Provisions,3103,06/11/2017,04/11/2017,ASDA SUPERSTORE,GLOUCESTER,GBR,GL1 1DS,REDACTED,556*********2362,5411,"GROCERY STORES, SUPERMARKETS",10.96,Pound Sterling (826),1.000000000,10.96,Debit,05377757309000586240274,02/12/2017,GLOUCESTER CC
Gloucester City Council,23UE,Gloucester Life Museum,MU005,General Supplies/Materials,3025,10/11/2017,09/11/2017,AMAZON SVCS EU-UK AMAZ,AMAZON.CO.UK,LUX,,REDACTED,556*********2362,5942,BOOK STORES,52.5,Pound Sterling (826),1.000000000,52.5,Debit,85389247313744868159561,02/12/2017,GLOUCESTER CC
Gloucester City Council,23UE,Museum of Gloucester,MU002,Catering Provisions,3103,13/11/2017,11/11/2017,ASDA SUPERSTORE,GLOUCESTER,GBR,GL1 1DS,REDACTED,556*********2362,5411,"GROCERY STORES, SUPERMARKETS",8.6,Pound Sterling (826),1.000000000,8.6,Debit,05377757316050650186748,02/12/2017,GLOUCESTER CC
Gloucester City Council,23UE,Museum of Gloucester,MU002,General Supplies/Materials,3025,13/11/2017,11/11/2017,AMAZON SVCS EU-UK AMAZ,AMAZON.CO.UK,LUX,,REDACTED,556*********2362,5942,BOOK STORES,28.74,Pound Sterling (826),1.000000000,28.74,Debit,85389247316745925522862,02/12/2017,GLOUCESTER CC
Gloucester City Council,23UE,Museum of Gloucester,MU002,General Supplies/Materials,3025,20/11/2017,18/11/2017,B&M RETAIL LTD,HS GLOUCESTER,,GL1 2DH,REDACTED,556*********2362,5310,DISCOUNT STORES,3.98,Pound Sterling (826),1.000000000,3.98,Debit,05230657323940070044297,02/12/2017,GLOUCESTER CC
Gloucester City Council,23UE,Gloucester Life Museum,MU005,Catering Provisions,3103,20/11/2017,18/11/2017,ASDA SUPERSTORE,GLOUCESTER,GBR,GL1 1DS,REDACTED,556*********2362,5411,"GROCERY STORES, SUPERMARKETS",8.6,Pound Sterling (826),1.000000000,8.6,Debit,05377757323000591693675,02/12/2017,GLOUCESTER CC
Gloucester City Council,23UE,Gloucester Life Museum,MU005,Public Transport - Staff,2402,23/11/2017,22/11/2017,GWR GLOUCESTER TO,GLOUCESTER,,GL1 1DE,REDACTED,556*********2362,4112,PASSENGER RAILWAYS,4.9,Pound Sterling (826),1.000000000,4.9,Debit,55504437326161104368523,02/12/2017,GLOUCESTER CC
Gloucester City Council,23UE,Museum of Gloucester,MU002,Catering Provisions,3103,27/11/2017,24/11/2017,ASDA SUPERSTORE,GLOUCESTER,GBR,GL1 1DS,REDACTED,556*********2362,5411,"GROCERY STORES, SUPERMARKETS",6.74,Pound Sterling (826),1.000000000,6.74,Debit,45377757329050241346661,02/12/2017,GLOUCESTER CC
Gloucester City Council,23UE,Gloucester Life Museum,MU005,Catering Provisions,3103,27/11/2017,25/11/2017,ASDA SUPERSTORE,GLOUCESTER,GBR,GL1 1DS,REDACTED,556*********2362,5411,"GROCERY STORES, SUPERMARKETS",7.52,Pound Sterling (826),1.000000000,7.52,Debit,05377757330050673999392,02/12/2017,GLOUCESTER CC
Gloucester City Council,23UE,Countryside Unit,EP003,General Supplies/Materials,3025,09/11/2017,08/11/2017,PAYPAL *HOPEWELLSPE,35314369001,GBR,TW91EH,REDACTED,556*********6734,5995,PET SHOPS-PET FOOD AND SUPPLY STORES,29.95,Pound Sterling (826),1.000000000,29.95,Debit,85130087312744976312485,02/12/2017,GLOUCESTER CC
Gloucester City Council,23UE,Countryside Unit,EP003,General Supplies/Materials,3025,20/11/2017,19/11/2017,Amazon Prime,amzn.co.uk/pm,LUX,L2338,REDACTED,556*********6734,5968,CONTINUITY/SUBSCRIPTION MERCHANTS,7.99,Pound Sterling (826),1.000000000,7.99,Debit,55204727323200401316700,02/12/2017,GLOUCESTER CC
Gloucester City Council,23UE,Countryside Unit,EP003,Vehicle Repairs and Maintenance,2103,22/11/2017,21/11/2017,ECP LTD,GLOUCESTER,,GL2 5HA,REDACTED,556*********6734,5533,"AUTOMOTIVE PARTS, ACCESSORIES STORES",3.99,Pound Sterling (826),1.000000000,3.99,Debit,05230657325660067967791,02/12/2017,GLOUCESTER CC
Gloucester City Council,23UE,Countryside Unit,EP003,Vehicle Repairs and Maintenance,2103,22/11/2017,21/11/2017,PAYPAL *HABIL TOK,35314369001,GBR,TW91EH,REDACTED,556*********6734,5722,HOUSEHOLD APPLIANCE STORES,1.97,Pound Sterling (826),1.000000000,1.97,Debit,85130087325746476950826,02/12/2017,GLOUCESTER CC
Gloucester City Council,23UE,Countryside Unit,EP003,General Supplies/Materials,3025,22/11/2017,21/11/2017,Amazon Prime,amzn.co.uk/pm,LUX,L2338,REDACTED,556*********6734,5968,CONTINUITY/SUBSCRIPTION MERCHANTS,-7.99,Pound Sterling (826),1.000000000,-7.99,Credit,55204727325200692160351,02/12/2017,GLOUCESTER CC
Gloucester City Council,23UE,Countryside Unit,EP003,Vehicle Repairs and Maintenance,2103,23/11/2017,22/11/2017,PAYPAL *SFINTLLTD,35314369001,GBR,TW91EH,REDACTED,556*********6734,5932,ANTIQUE SHOPS,13.49,Pound Sterling (826),1.000000000,13.49,Debit,85130087326746519507970,02/12/2017,GLOUCESTER CC
Gloucester City Council,23UE,Guildhall Bar & Caf�,GH005,Catering Provisions,3103,06/11/2017,03/11/2017,TESCO STORES 5363,GLOUCESTER,GBR,GL3 4AA,REDACTED,556*********1155,5411,"GROCERY STORES, SUPERMARKETS",79.05,Pound Sterling (826),1.000000000,79.05,Debit,45377757308000370000352,02/12/2017,GLOUCESTER CC
Gloucester City Council,23UE,Guildhall Bar & Caf�,GH005,Catering Provisions,3103,08/11/2017,07/11/2017,SAINSBURYS SACAT 0608,GLOUCESTER,GBR,GL4 3RT,REDACTED,556*********1155,5411,"GROCERY STORES, SUPERMARKETS",14.6,Pound Sterling (826),1.000000000,14.6,Debit,25425157312020094815639,02/12/2017,GLOUCESTER CC
Gloucester City Council,23UE,Guildhall Bar & Caf�,GH005,Catering Provisions,3103,08/11/2017,07/11/2017,BOOKER LIMITED GLOUCES,GLOUCESTER,GBR,GL4 3RT,REDACTED,556*********1155,5811,CATERERS,83.08,Pound Sterling (826),1.000000000,83.08,Debit,55184227311893123888631,02/12/2017,GLOUCESTER CC
Gloucester City Council,23UE,Guildhall Bar & Caf�,GH005,Catering Provisions,3103,09/11/2017,08/11/2017,BOOKER LIMITED GLOUCES,GLOUCESTER,GBR,GL4 3RT,REDACTED,556*********1155,5811,CATERERS,37.19,Pound Sterling (826),1.000000000,37.19,Debit,55184227312873137875641,02/12/2017,GLOUCESTER CC
Gloucester City Council,23UE,Guildhall Bar & Caf�,GH005,Catering Provisions,3103,13/11/2017,10/11/2017,ASDA SUPERSTORE,GLOUCESTER,GBR,GL1 1DS,REDACTED,556*********1155,5411,"GROCERY STORES, SUPERMARKETS",34.05,Pound Sterling (826),1.000000000,34.05,Debit,35377757315050165294621,02/12/2017,GLOUCESTER CC
Gloucester City Council,23UE,Managing Director & Directors,MT001,Hospitality & Refreshments,3104,14/11/2017,13/11/2017,BOOKER LIMITED GLOUCES,GLOUCESTER,GBR,GL4 3RT,REDACTED,556*********1155,5811,CATERERS,64.17,Pound Sterling (826),1.000000000,64.17,Debit,55184227317893183560926,02/12/2017,GLOUCESTER CC
Gloucester City Council,23UE,Guildhall Bar & Caf�,GH005,Catering Provisions,3103,15/11/2017,14/11/2017,TESCO STORES 5363,GLOUCESTER,GBR,GL3 4AA,REDACTED,556*********1155,5411,"GROCERY STORES, SUPERMARKETS",81.27,Pound Sterling (826),1.000000000,81.27,Debit,45377757319070320059557,02/12/2017,GLOUCESTER CC
Gloucester City Council,23UE,Guildhall Events,GH002,Professional Advice/Consultants fees,3952,16/11/2017,15/11/2017,MAPLIN GLOUCESTER GL4,GLOUCESTER,GBR,GL4 4LP,REDACTED,556*********1155,4812,TELECOMMUNICATION EQUIPMENT INCLUDING TELEPHONE SALES,14.98,Pound Sterling (826),1.000000000,14.98,Debit,25425157320080154339664,02/12/2017,GLOUCESTER CC
Gloucester City Council,23UE,Guildhall Bar & Caf�,GH005,Catering Provisions,3103,17/11/2017,16/11/2017,ICELAND,GLOUCESTER,GBR,GL1 1SA,REDACTED,556*********1155,5411,"GROCERY STORES, SUPERMARKETS",5.94,Pound Sterling (826),1.000000000,5.94,Debit,25377757321090088136122,02/12/2017,GLOUCESTER CC
Gloucester City Council,23UE,Guildhall Bar & Caf�,GH005,Catering Provisions,3103,20/11/2017,17/11/2017,SAINSBURYS SACAT 0771,GLOUCESTER,GBR,GL1 2AG,REDACTED,556*********1155,5411,"GROCERY STORES, SUPERMARKETS",15.95,Pound Sterling (826),1.000000000,15.95,Debit,25425157322000136188466,02/12/2017,GLOUCESTER CC
Gloucester City Council,23UE,Guildhall Bar & Caf�,GH005,Catering Provisions,3103,20/11/2017,17/11/2017,ASDA SUPERSTORE,GLOUCESTER,GBR,GL1 1DS,REDACTED,556*********1155,5411,"GROCERY STORES, SUPERMARKETS",6.93,Pound Sterling (826),1.000000000,6.93,Debit,35377757322000175736369,02/12/2017,GLOUCESTER CC
Gloucester City Council,23UE,Guildhall Cinema,GH003,Professional Advice/Consultants fees,3952,21/11/2017,20/11/2017,POSTOFFICE SELFSERVICE,GLOUCESTER,,GL1 1AD,REDACTED,556*********1155,9402,POSTAGE STAMPS,7.25,Pound Sterling (826),1.000000000,7.25,Debit,55504437324252185114795,02/12/2017,GLOUCESTER CC
Gloucester City Council,23UE,Guildhall Bar & Caf�,GH005,Catering Provisions,3103,23/11/2017,22/11/2017,SAINSBURYS 0771,GLOUCESTER,GBR,GL1 2AG,REDACTED,556*********1155,5411,"GROCERY STORES, SUPERMARKETS",15.6,Pound Sterling (826),1.000000000,15.6,Debit,25425157327030104228593,02/12/2017,GLOUCESTER CC
Gloucester City Council,23UE,Guildhall Bar & Caf�,GH005,Catering Provisions,3103,24/11/2017,23/11/2017,ICELAND,GLOUCESTER,GBR,GL1 1SA,REDACTED,556*********1155,5411,"GROCERY STORES, SUPERMARKETS",2.97,Pound Sterling (826),1.000000000,2.97,Debit,35377757328040216005576,02/12/2017,GLOUCESTER CC
Gloucester City Council,23UE,Guildhall Bar & Caf�,GH005,Catering Provisions,3103,29/11/2017,28/11/2017,ICELAND,GLOUCESTER,GBR,GL1 1SA,REDACTED,556*********1155,5411,"GROCERY STORES, SUPERMARKETS",2.97,Pound Sterling (826),1.000000000,2.97,Debit,35377757333070189185124,02/12/2017,GLOUCESTER CC
Gloucester City Council,23UE,Guildhall Bar & Caf�,GH005,Catering Provisions,3103,30/11/2017,29/11/2017,SAINSBURYS SACAT 0771,GLOUCESTER,GBR,GL1 2AG,REDACTED,556*********1155,5411,"GROCERY STORES, SUPERMARKETS",8.35,Pound Sterling (826),1.000000000,8.35,Debit,25425157334080111458775,02/12/2017,GLOUCESTER CC
Gloucester City Council,23UE,Guildhall Bar & Caf�,GH005,Catering Provisions,3103,01/12/2017,30/11/2017,ICELAND,GLOUCESTER,GBR,GL1 1SA,REDACTED,556*********1155,5411,"GROCERY STORES, SUPERMARKETS",1.98,Pound Sterling (826),1.000000000,1.98,Debit,25377757335090093433716,02/12/2017,GLOUCESTER CC
Gloucester City Council,23UE,Tourist Information Centre,TI002,Public Transport - Staff,2402,10/11/2017,09/11/2017,Trainline,London,GBR,1445,REDACTED,556*********8997,4112,PASSENGER RAILWAYS,42.13,Pound Sterling (826),1.000000000,42.13,Debit,85130087313744029330277,02/12/2017,GLOUCESTER CC
Gloucester City Council,23UE,Democratic Services,DS003,Mileage and Travel Allowances,2401,08/11/2017,07/11/2017,CHELTENHAM COUNCIL,CAR PARKING,,GL50 9SA,REDACTED,556*********3029,9399,GOVERNMENT SERVICES NOT ELSEWHERE CLASSIFIED,4.3,Pound Sterling (826),1.000000000,4.3,Debit,85481477312000848976736,02/12/2017,GLOUCESTER CC
Gloucester City Council,23UE,Members Support,DS002,Mileage and Travel Allowances,3609,23/11/2017,22/11/2017,Trainline,London,GBR,1445,REDACTED,556*********3029,4112,PASSENGER RAILWAYS,177.48,Pound Sterling (826),1.000000000,177.48,Debit,85130087326746539062188,02/12/2017,GLOUCESTER CC
Gloucester City Council,23UE,Homelessness,HS002,B&B Payments,1303,03/11/2017,02/11/2017,TRAVELODGE GB0000,THAME,,OX9 3AT,REDACTED,556*********6959,3615,TRAVELODGE,60,Pound Sterling (826),1.000000000,60,Debit,55504437306298155438104,02/12/2017,GLOUCESTER CC
Gloucester City Council,23UE,Homelessness,HS002,B&B Payments,1303,06/11/2017,03/11/2017,TRAVELODGE GB0000,THAME,,OX9 3AT,REDACTED,556*********6959,3615,TRAVELODGE,168,Pound Sterling (826),1.000000000,168,Debit,55504437307298163236911,02/12/2017,GLOUCESTER CC
Gloucester City Council,23UE,Homelessness,HS002,B&B Payments,1303,06/11/2017,03/11/2017,TRAVELODGE GB0000,THAME,,OX9 3AT,REDACTED,556*********6959,3615,TRAVELODGE,395,Pound Sterling (826),1.000000000,395,Debit,55504437307298163238420,02/12/2017,GLOUCESTER CC
Gloucester City Council,23UE,Homelessness,HS002,B&B Payments,1303,06/11/2017,03/11/2017,TRAVELODGE GB0000,THAME,,OX9 3AT,REDACTED,556*********6959,3615,TRAVELODGE,168,Pound Sterling (826),1.000000000,168,Debit,55504437307298163242711,02/12/2017,GLOUCESTER CC
Gloucester City Council,23UE,Homelessness,HS002,B&B Payments,1303,07/11/2017,06/11/2017,TRAVELODGE GB0000,THAME,,OX9 3AT,REDACTED,556*********6959,3615,TRAVELODGE,796,Pound Sterling (826),1.000000000,796,Debit,55504437310298184612525,02/12/2017,GLOUCESTER CC
Gloucester City Council,23UE,Homelessness,HS002,B&B Payments,1303,07/11/2017,06/11/2017,TRAVELODGE GB0000,THAME,,OX9 3AT,REDACTED,556*********6959,3615,TRAVELODGE,502,Pound Sterling (826),1.000000000,502,Debit,55504437310298184524118,02/12/2017,GLOUCESTER CC
Gloucester City Council,23UE,Homelessness,HS002,B&B Payments,1303,07/11/2017,06/11/2017,TRAVELODGE GB0000,THAME,,OX9 3AT,REDACTED,556*********6959,3615,TRAVELODGE,434,Pound Sterling (826),1.000000000,434,Debit,55504437310298184607319,02/12/2017,GLOUCESTER CC
Gloucester City Council,23UE,Homelessness,HS002,B&B Payments,1303,07/11/2017,06/11/2017,TRAVELODGE GB0000,THAME,,OX9 3AT,REDACTED,556*********6959,3615,TRAVELODGE,1448,Pound Sterling (826),1.000000000,1448,Debit,55504437310298184501975,02/12/2017,GLOUCESTER CC
Gloucester City Council,23UE,Homelessness,HS002,B&B Payments,1303,07/11/2017,06/11/2017,TRAVELODGE GB0000,THAME,,OX9 3AT,REDACTED,556*********6959,3615,TRAVELODGE,350,Pound Sterling (826),1.000000000,350,Debit,55504437310298184504581,02/12/2017,GLOUCESTER CC
Gloucester City Council,23UE,Homelessness,HS002,B&B Payments,1303,07/11/2017,06/11/2017,TRAVELODGE GB0000,THAME,,OX9 3AT,REDACTED,556*********6959,3615,TRAVELODGE,488,Pound Sterling (826),1.000000000,488,Debit,55504437310298184510174,02/12/2017,GLOUCESTER CC
Gloucester City Council,23UE,Homelessness,HS002,B&B Payments,1303,08/11/2017,07/11/2017,TRAVELODGE GB0000,THAME,,OX9 3AT,REDACTED,556*********6959,3615,TRAVELODGE,563,Pound Sterling (826),1.000000000,563,Debit,55504437311298191524407,02/12/2017,GLOUCESTER CC
Gloucester City Council,23UE,Homelessness,HS002,B&B Payments,1303,08/11/2017,07/11/2017,TRAVELODGE GB0000,THAME,,OX9 3AT,REDACTED,556*********6959,3615,TRAVELODGE,-424,Pound Sterling (826),1.000000000,-424,Credit,55504437311295321471004,02/12/2017,GLOUCESTER CC
Gloucester City Council,23UE,Homelessness,HS002,B&B Payments,1303,09/11/2017,08/11/2017,TRAVELODGE GB0000,THAME,,OX9 3AT,REDACTED,556*********6959,3615,TRAVELODGE,56,Pound Sterling (826),1.000000000,56,Debit,55504437312298199841539,02/12/2017,GLOUCESTER CC
Gloucester City Council,23UE,Homelessness,HS002,B&B Payments,1303,10/11/2017,09/11/2017,TRAVELODGE GB0000,THAME,,OX9 3AT,REDACTED,556*********6959,3615,TRAVELODGE,154,Pound Sterling (826),1.000000000,154,Debit,55504437313298105795943,02/12/2017,GLOUCESTER CC
Gloucester City Council,23UE,Homelessness,HS002,B&B Payments,1303,10/11/2017,09/11/2017,TRAVELODGE GB0000,THAME,,OX9 3AT,REDACTED,556*********6959,3615,TRAVELODGE,60,Pound Sterling (826),1.000000000,60,Debit,55504437313298105722913,02/12/2017,GLOUCESTER CC
Gloucester City Council,23UE,Homelessness,HS002,B&B Payments,1303,10/11/2017,09/11/2017,TRAVELODGE GB0000,THAME,,OX9 3AT,REDACTED,556*********6959,3615,TRAVELODGE,231,Pound Sterling (826),1.000000000,231,Debit,55504437313298105723507,02/12/2017,GLOUCESTER CC
Gloucester City Council,23UE,Homelessness,HS002,B&B Payments,1303,13/11/2017,10/11/2017,TRAVELODGE GB0000,THAME,,OX9 3AT,REDACTED,556*********6959,3615,TRAVELODGE,168,Pound Sterling (826),1.000000000,168,Debit,55504437314298113087647,02/12/2017,GLOUCESTER CC
Gloucester City Council,23UE,Homelessness,HS002,B&B Payments,1303,14/11/2017,13/11/2017,TRAVELODGE GB0000,THAME,,OX9 3AT,REDACTED,556*********6959,3615,TRAVELODGE,335,Pound Sterling (826),1.000000000,335,Debit,55504437317298135379235,02/12/2017,GLOUCESTER CC
Gloucester City Council,23UE,Homelessness,HS002,B&B Payments,1303,14/11/2017,13/11/2017,TRAVELODGE GB0000,THAME,,OX9 3AT,REDACTED,556*********6959,3615,TRAVELODGE,243,Pound Sterling (826),1.000000000,243,Debit,55504437317298135322425,02/12/2017,GLOUCESTER CC
Gloucester City Council,23UE,Homelessness,HS002,B&B Payments,1303,14/11/2017,13/11/2017,TRAVELODGE GB0000,THAME,,OX9 3AT,REDACTED,556*********6959,3615,TRAVELODGE,335,Pound Sterling (826),1.000000000,335,Debit,55504437317298135286695,02/12/2017,GLOUCESTER CC
Gloucester City Council,23UE,Homelessness,HS002,B&B Payments,1303,16/11/2017,15/11/2017,TRAVELODGE GB0000,THAME,,OX9 3AT,REDACTED,556*********6959,3615,TRAVELODGE,56,Pound Sterling (826),1.000000000,56,Debit,55504437319298148388080,02/12/2017,GLOUCESTER CC
Gloucester City Council,23UE,Homelessness,HS002,B&B Payments,1303,17/11/2017,16/11/2017,TRAVELODGE GB0000,THAME,,OX9 3AT,REDACTED,556*********6959,3615,TRAVELODGE,868,Pound Sterling (826),1.000000000,868,Debit,55504437320298155617501,02/12/2017,GLOUCESTER CC
Gloucester City Council,23UE,Homelessness,HS002,B&B Payments,1303,21/11/2017,20/11/2017,TRAVELODGE GB0000,THAME,,OX9 3AT,REDACTED,556*********6959,3615,TRAVELODGE,440,Pound Sterling (826),1.000000000,440,Debit,55504437324298186369458,02/12/2017,GLOUCESTER CC
Gloucester City Council,23UE,Homelessness,HS002,B&B Payments,1303,21/11/2017,20/11/2017,TRAVELODGE GB0000,THAME,,OX9 3AT,REDACTED,556*********6959,3615,TRAVELODGE,494,Pound Sterling (826),1.000000000,494,Debit,55504437324298186369755,02/12/2017,GLOUCESTER CC
Gloucester City Council,23UE,Homelessness,HS002,B&B Payments,1303,21/11/2017,20/11/2017,TRAVELODGE GB0000,THAME,,OX9 3AT,REDACTED,556*********6959,3615,TRAVELODGE,257,Pound Sterling (826),1.000000000,257,Debit,55504437324298186402713,02/12/2017,GLOUCESTER CC
Gloucester City Council,23UE,Homelessness,HS002,B&B Payments,1303,21/11/2017,20/11/2017,TRAVELODGE GB0000,THAME,,OX9 3AT,REDACTED,556*********6959,3615,TRAVELODGE,494,Pound Sterling (826),1.000000000,494,Debit,55504437324298186466635,02/12/2017,GLOUCESTER CC
Gloucester City Council,23UE,Homelessness,HS002,B&B Payments,1303,22/11/2017,21/11/2017,TRAVELODGE GB0000,THAME,,OX9 3AT,REDACTED,556*********6959,3615,TRAVELODGE,270,Pound Sterling (826),1.000000000,270,Debit,55504437325298193883367,02/12/2017,GLOUCESTER CC
Gloucester City Council,23UE,Homelessness,HS002,B&B Payments,1303,22/11/2017,21/11/2017,TRAVELODGE GB0000,THAME,,OX9 3AT,REDACTED,556*********6959,3615,TRAVELODGE,209,Pound Sterling (826),1.000000000,209,Debit,55504437325298193899769,02/12/2017,GLOUCESTER CC
Gloucester City Council,23UE,Homelessness,HS002,B&B Payments,1303,22/11/2017,21/11/2017,TRAVELODGE GB0000,THAME,,OX9 3AT,REDACTED,556*********6959,3615,TRAVELODGE,178,Pound Sterling (826),1.000000000,178,Debit,55504437325298193912976,02/12/2017,GLOUCESTER CC
Gloucester City Council,23UE,Homelessness,HS002,B&B Payments,1303,24/11/2017,23/11/2017,TRAVELODGE GB0000,THAME,,OX9 3AT,REDACTED,556*********6959,3615,TRAVELODGE,203,Pound Sterling (826),1.000000000,203,Debit,55504437327298109228689,02/12/2017,GLOUCESTER CC
Gloucester City Council,23UE,Homelessness,HS002,B&B Payments,1303,24/11/2017,23/11/2017,TRAVELODGE GB0000,THAME,,OX9 3AT,REDACTED,556*********6959,3615,TRAVELODGE,375,Pound Sterling (826),1.000000000,375,Debit,55504437327298109338892,02/12/2017,GLOUCESTER CC
Gloucester City Council,23UE,Homelessness,HS002,B&B Payments,1303,24/11/2017,23/11/2017,TRAVELODGE GB0000,THAME,,OX9 3AT,REDACTED,556*********6959,3615,TRAVELODGE,218,Pound Sterling (826),1.000000000,218,Debit,55504437327298109257423,02/12/2017,GLOUCESTER CC
Gloucester City Council,23UE,Homelessness,HS002,B&B Payments,1303,27/11/2017,24/11/2017,TRAVELODGE GB0000,THAME,,OX9 3AT,REDACTED,556*********6959,3615,TRAVELODGE,460,Pound Sterling (826),1.000000000,460,Debit,55504437328298119427296,02/12/2017,GLOUCESTER CC
Gloucester City Council,23UE,Rehousing,HS001,Public Transport - Staff,2402,28/11/2017,27/11/2017,Trainline,London,GBR,1445,REDACTED,556*********6959,4112,PASSENGER RAILWAYS,232.87,Pound Sterling (826),1.000000000,232.87,Debit,85130087331747777431344,02/12/2017,GLOUCESTER CC
Gloucester City Council,23UE,Homelessness,HS002,B&B Payments,1303,28/11/2017,27/11/2017,TRAVELODGE GB0000,THAME,,OX9 3AT,REDACTED,556*********6959,3615,TRAVELODGE,494,Pound Sterling (826),1.000000000,494,Debit,55504437331298147165632,02/12/2017,GLOUCESTER CC
Gloucester City Council,23UE,Homelessness,HS002,B&B Payments,1303,28/11/2017,27/11/2017,TRAVELODGE GB0000,THAME,,OX9 3AT,REDACTED,556*********6959,3615,TRAVELODGE,396,Pound Sterling (826),1.000000000,396,Debit,55504437331298147122864,02/12/2017,GLOUCESTER CC
Gloucester City Council,23UE,Homelessness,HS002,B&B Payments,1303,28/11/2017,27/11/2017,TRAVELODGE GB0000,THAME,,OX9 3AT,REDACTED,556*********6959,3615,TRAVELODGE,-88,Pound Sterling (826),1.000000000,-88,Credit,55504437331298147172604,02/12/2017,GLOUCESTER CC
Gloucester City Council,23UE,Rehousing,HS001,Public Transport - Staff,2402,29/11/2017,28/11/2017,OYSTER RENEW WEB,0343 2221234,,SW1H 0TL,REDACTED,556*********6959,4112,PASSENGER RAILWAYS,15,Pound Sterling (826),1.000000000,15,Debit,05230657333320075384311,02/12/2017,GLOUCESTER CC
Gloucester City Council,23UE,Homelessness,HS002,B&B Payments,1303,29/11/2017,28/11/2017,TRAVELODGE GB0000,THAME,,OX9 3AT,REDACTED,556*********6959,3615,TRAVELODGE,507,Pound Sterling (826),1.000000000,507,Debit,55504437332298155674912,02/12/2017,GLOUCESTER CC
Gloucester City Council,23UE,Homelessness,HS002,B&B Payments,1303,30/11/2017,29/11/2017,TRAVELODGE GB0000,THAME,,OX9 3AT,REDACTED,556*********6959,3615,TRAVELODGE,48,Pound Sterling (826),1.000000000,48,Debit,55504437333298163288043,02/12/2017,GLOUCESTER CC
Gloucester City Council,23UE,Homelessness,HS002,B&B Payments,1303,30/11/2017,29/11/2017,TRAVELODGE GB0000,THAME,,OX9 3AT,REDACTED,556*********6959,3615,TRAVELODGE,311,Pound Sterling (826),1.000000000,311,Debit,55504437333298163285882,02/12/2017,GLOUCESTER CC
Gloucester City Council,23UE,Homelessness,HS002,B&B Payments,1303,01/12/2017,30/11/2017,TRAVELODGE GB0000,THAME,,OX9 3AT,REDACTED,556*********6959,3615,TRAVELODGE,60,Pound Sterling (826),1.000000000,60,Debit,55504437334298171731975,02/12/2017,GLOUCESTER CC
Gloucester City Council,23UE,Homelessness,HS002,B&B Payments,1303,01/12/2017,30/11/2017,TRAVELODGE GB0000,THAME,,OX9 3AT,REDACTED,556*********6959,3615,TRAVELODGE,568,Pound Sterling (826),1.000000000,568,Debit,55504437334298171721158,02/12/2017,GLOUCESTER CC
Gloucester City Council,23UE,Homelessness,HS002,B&B Payments,1303,01/12/2017,30/11/2017,TRAVELODGE GB0000,THAME,,OX9 3AT,REDACTED,556*********6959,3615,TRAVELODGE,521,Pound Sterling (826),1.000000000,521,Debit,55504437334298171700947,02/12/2017,GLOUCESTER CC
Gloucester City Council,23UE,Economic Development,ED001,Public Transport - Staff,2402,08/11/2017,07/11/2017,Trainline,London,GBR,1445,REDACTED,556*********3822,4112,PASSENGER RAILWAYS,76.3,Pound Sterling (826),1.000000000,76.3,Debit,85130087311744958047340,02/12/2017,GLOUCESTER CC
Gloucester City Council,23UE,Managing Director & Directors,MT001,Public Transport - Staff,2402,21/11/2017,20/11/2017,Trainline,London,GBR,1445,REDACTED,556*********3822,4112,PASSENGER RAILWAYS,137.5,Pound Sterling (826),1.000000000,137.5,Debit,85130087324746450185390,02/12/2017,GLOUCESTER CC
Gloucester City Council,23UE,Economic Development,ED001,Public Transport - Staff,2402,21/11/2017,20/11/2017,Trainline,London,GBR,1445,REDACTED,556*********3822,4112,PASSENGER RAILWAYS,10.35,Pound Sterling (826),1.000000000,10.35,Debit,85130087324746450171135,02/12/2017,GLOUCESTER CC
Gloucester City Council,23UE,Contact Centre,CT001,Public Transport - Staff,2402,22/11/2017,21/11/2017,Trainline,London,GBR,1445,REDACTED,556*********3822,4112,PASSENGER RAILWAYS,134.03,Pound Sterling (826),1.000000000,134.03,Debit,85130087325746494932376,02/12/2017,GLOUCESTER CC
Gloucester City Council,23UE,Head of Cultural and Trading,MT003,Public Transport - Staff,2402,23/11/2017,22/11/2017,Trainline,London,GBR,1445,REDACTED,556*********3822,4112,PASSENGER RAILWAYS,61.2,Pound Sterling (826),1.000000000,61.2,Debit,85130087326746539057303,02/12/2017,GLOUCESTER CC
Gloucester City Council,23UE,Economic Development,ED001,Public Transport - Staff,2402,28/11/2017,27/11/2017,Trainline,London,GBR,1445,REDACTED,556*********3822,4112,PASSENGER RAILWAYS,47.02,Pound Sterling (826),1.000000000,47.02,Debit,85130087331747784409218,02/12/2017,GLOUCESTER CC
Gloucester City Council,23UE,Gloucester Guildhall,GH001,Equipment and Furniture,3001,06/11/2017,03/11/2017,DV247 LIMITED,01708 771900,,RM7 7PJ,REDACTED,556*********8256,5733,"MUSIC STORES-MUSICAL INSTRUMENTS, PIANOS, SHEET MUSIC",40.59,Pound Sterling (826),1.000000000,40.59,Debit,85481477308000662902202,02/12/2017,GLOUCESTER CC
Gloucester City Council,23UE,Guildhall Events,GH002,Advertising & Publicity,3404,06/11/2017,03/11/2017,WWW.INSTANTPRINT.C,01709 382202,,S63 5DR,REDACTED,556*********8256,7338,QUICK-COPY AND REPRODUCTION SERVICES,136,Pound Sterling (826),1.000000000,136,Debit,85481477308000664638879,02/12/2017,GLOUCESTER CC
Gloucester City Council,23UE,Guildhall Cinema,GH003,Professional Advice/Consultants fees,3952,06/11/2017,03/11/2017,POST OFFICE COUNTER,GLOUCESTER,,GL1 1AD,REDACTED,556*********8256,9402,POSTAGE STAMPS,4.4,Pound Sterling (826),1.000000000,4.4,Debit,55504437307194270779713,02/12/2017,GLOUCESTER CC
Gloucester City Council,23UE,Guildhall Events,GH002,Professional Advice/Consultants fees,3952,07/11/2017,06/11/2017,IBIS GLOUCESTER,GLOUCESTER,GBR,GL43DG,REDACTED,556*********8256,3533,HOTEL IBIS,210,Pound Sterling (826),1.000000000,210,Debit,55184227310903112492534,02/12/2017,GLOUCESTER CC
Gloucester City Council,23UE,Gloucester Guildhall,GH001,Equipment and Furniture,3001,09/11/2017,08/11/2017,PAYPAL *STUDIO1 LTD,35314369001,GBR,GU68LW,REDACTED,556*********8256,5946,CAMERA AND PHOTOGRAPHIC SUPPLY STORES,29.32,Pound Sterling (826),1.000000000,29.32,Debit,85130087312744990590629,02/12/2017,GLOUCESTER CC
Gloucester City Council,23UE,Gloucester Guildhall,GH001,Equipment and Furniture,3001,09/11/2017,08/11/2017,PAYPAL *SIMPLYBEST,35314369001,GBR,TW91EH,REDACTED,556*********8256,5999,MISCELLANEOUS AND RETAIL STORES,21.3,Pound Sterling (826),1.000000000,21.3,Debit,85130087312744992301272,02/12/2017,GLOUCESTER CC
Gloucester City Council,23UE,Culture Trust - Great Place,GP001,Mileage and Travel Allowances,2401,09/11/2017,07/11/2017,PREMIER INN44523635,HAMPSTEAD,,NW3 4RB,REDACTED,556*********8256,3811,PREMIER INN,85,Pound Sterling (826),1.000000000,85,Debit,55541967313529000097972,02/12/2017,GLOUCESTER CC
Gloucester City Council,23UE,Culture Trust - Great Place,GP001,Public Transport - Staff,2402,13/11/2017,12/11/2017,GWR GLOUCESTER TO,GLOUCESTER,,GL1 1DE,REDACTED,556*********8256,4112,PASSENGER RAILWAYS,72.5,Pound Sterling (826),1.000000000,72.5,Debit,55504437316161129775001,02/12/2017,GLOUCESTER CC
Gloucester City Council,23UE,Culture Trust - Great Place,GP001,Mileage and Travel Allowances,2401,14/11/2017,12/11/2017,PREMIER INN44523635,HAMPSTEAD,,NW3 4RB,REDACTED,556*********8256,3811,PREMIER INN,10.5,Pound Sterling (826),1.000000000,10.5,Debit,55541967318544000002406,02/12/2017,GLOUCESTER CC
Gloucester City Council,23UE,Guildhall Events,GH002,Professional Advice/Consultants fees,3952,15/11/2017,14/11/2017,MIPERMIT,INTERNET,GBR,SN15 5FD,REDACTED,556*********8256,7523,AUTOMOBILE PARKING LOTS AND GARAGES,15,Pound Sterling (826),1.000000000,15,Debit,25425157319070092993196,02/12/2017,GLOUCESTER CC
Gloucester City Council,23UE,Guildhall Cinema,GH003,Advertising & Publicity,3404,16/11/2017,15/11/2017,WWW.INSTANTPRINT.C,01709 382202,,S63 5DR,REDACTED,556*********8256,7338,QUICK-COPY AND REPRODUCTION SERVICES,74.99,Pound Sterling (826),1.000000000,74.99,Debit,85481477320001217654516,02/12/2017,GLOUCESTER CC
Gloucester City Council,23UE,Museum of Gloucester Catering,MU004,Mileage and Travel Allowances,2401,17/11/2017,15/11/2017,JURYS INN MANCHESTER,MANCHESTER,GBR,M1 5LE,REDACTED,556*********8256,7011,"LODGING, HOTELS, MOTELS, RESORTS",238,Pound Sterling (826),1.000000000,238,Debit,55184227320913200821245,02/12/2017,GLOUCESTER CC
Gloucester City Council,23UE,Guildhall Events,GH002,Advertising & Publicity,3404,17/11/2017,16/11/2017,BIGGER PRINTING CO,01242 528868,,GL519EJ,REDACTED,556*********8256,7333,"COMMERCIAL PHOTOGRAPHY, ART, AND GRAPHICS",60,Pound Sterling (826),1.000000000,60,Debit,85481477320001252371455,02/12/2017,GLOUCESTER CC
Gloucester City Council,23UE,Guildhall Events,GH002,Professional Advice/Consultants fees,3952,20/11/2017,17/11/2017,MIPERMIT,INTERNET,GBR,SN15 5FD,REDACTED,556*********8256,7523,AUTOMOBILE PARKING LOTS AND GARAGES,10,Pound Sterling (826),1.000000000,10,Debit,25425157322000127393232,02/12/2017,GLOUCESTER CC
Gloucester City Council,23UE,Guildhall Lettings,GH006,Advertising & Publicity,3404,22/11/2017,21/11/2017,WWW.INSTANTPRINT.C,01709 382202,,S63 5DR,REDACTED,556*********8256,7338,QUICK-COPY AND REPRODUCTION SERVICES,46.99,Pound Sterling (826),1.000000000,46.99,Debit,85481477326001491530725,02/12/2017,GLOUCESTER CC
Gloucester City Council,23UE,Guildhall Events,GH002,Advertising & Publicity,3404,24/11/2017,23/11/2017,WWW.INSTANTPRINT.C,01709 382202,,S63 5DR,REDACTED,556*********8256,7338,QUICK-COPY AND REPRODUCTION SERVICES,26.99,Pound Sterling (826),1.000000000,26.99,Debit,85481477328001585992987,02/12/2017,GLOUCESTER CC
Gloucester City Council,23UE,Guildhall Events,GH002,Advertising & Publicity,3404,27/11/2017,24/11/2017,FACEBK X6V8QEA6M2,fb.me/ads,IRL,2,REDACTED,556*********8256,7311,ADVERTISING SERVICES,200,Pound Sterling (826),1.000000000,200,Debit,15265677328345815781742,02/12/2017,GLOUCESTER CC
Gloucester City Council,23UE,Guildhall Cinema,GH003,Advertising & Publicity,3404,27/11/2017,24/11/2017,WWW.INSTANTPRINT.C,01709 382202,,S63 5DR,REDACTED,556*********8256,7338,QUICK-COPY AND REPRODUCTION SERVICES,28.99,Pound Sterling (826),1.000000000,28.99,Debit,85481477329001636436710,02/12/2017,GLOUCESTER CC
Gloucester City Council,23UE,Blackfriars ,GH010,Advertising & Publicity,3404,27/11/2017,24/11/2017,PAYPAL *LIGHTS4FUN,35314369001,GBR,HG31QF,REDACTED,556*********8256,5719,MISCELLANEOUS HOUSE FURNISHING SPECIALITY STORES,350.73,Pound Sterling (826),1.000000000,350.73,Debit,85130087328746612800734,02/12/2017,GLOUCESTER CC
Gloucester City Council,23UE,Gloucester Guildhall,GH001,Public Transport - Staff,2402,28/11/2017,27/11/2017,Trainline,London,GBR,1445,REDACTED,556*********8256,4112,PASSENGER RAILWAYS,71.2,Pound Sterling (826),1.000000000,71.2,Debit,85130087331747777735538,02/12/2017,GLOUCESTER CC
Gloucester City Council,23UE,Guildhall Bar & Caf�,GH005,Supplies For Resale,3020,29/11/2017,28/11/2017,B&M RETAIL LTD,HS GLOUCESTER,,GL1 2DH,REDACTED,556*********8256,5310,DISCOUNT STORES,6.99,Pound Sterling (826),1.000000000,6.99,Debit,05230657333510074997564,02/12/2017,GLOUCESTER CC
Gloucester City Council,23UE,Guildhall Bar & Caf�,GH005,Supplies For Resale,3020,29/11/2017,28/11/2017,B&M RETAIL LTD,HS GLOUCESTER,,GL1 2DH,REDACTED,556*********8256,5310,DISCOUNT STORES,2.99,Pound Sterling (826),1.000000000,2.99,Debit,05230657333570074997923,02/12/2017,GLOUCESTER CC
Gloucester City Council,23UE,Guildhall Events,GH002,Professional Advice/Consultants fees,3952,30/11/2017,29/11/2017,MIPERMIT,INTERNET,GBR,SN15 5FD,REDACTED,556*********8256,7523,AUTOMOBILE PARKING LOTS AND GARAGES,15,Pound Sterling (826),1.000000000,15,Debit,25425157334080103635307,02/12/2017,GLOUCESTER CC
Gloucester City Council,23UE,Guildhall Events,GH002,Advertising & Publicity,3404,01/12/2017,30/11/2017,FACEBK DHL2EE66M2,fb.me/ads,IRL,2,REDACTED,556*********8256,7311,ADVERTISING SERVICES,26.3,Pound Sterling (826),1.000000000,26.3,Debit,15265677334397662311745,02/12/2017,GLOUCESTER CC
Gloucester City Council,23UE,Guildhall Events,GH002,Advertising & Publicity,3404,01/12/2017,30/11/2017,FACEBK *X4D68EEEX2,fb.me/ads,IRL,UNKNOWN,REDACTED,556*********8256,7311,ADVERTISING SERVICES,3.53,Pound Sterling (826),1.000000000,3.53,Debit,55204727334200337253859,02/12/2017,GLOUCESTER CC
Gloucester City Council,23UE,Guildhall Events,GH002,Advertising & Publicity,3404,01/12/2017,30/11/2017,FACEBK QFVN8E2LR2,fb.me/ads,IRL,2,REDACTED,556*********8256,7311,ADVERTISING SERVICES,37.28,Pound Sterling (826),1.000000000,37.28,Debit,15265677334678573701243,02/12/2017,GLOUCESTER CC
Gloucester City Council,23UE,Financial Services,FS004,External Training Course Fees,0550,03/11/2017,02/11/2017,WWW.CIMAGLOBAL.COM,020 8849 2251,,EC2M 2RB,REDACTED,556*********3063,8220,"COLLEGES, UNIVERSITIES, PROFESSIONAL SCHOOLS AND JUNIOR COLLEGES",256,Pound Sterling (826),1.000000000,256,Debit,85481477307000614078730,02/12/2017,GLOUCESTER CC
Gloucester City Council,23UE,Vehicles,CT002,Hire of Vehicles/Plant,2301,08/11/2017,07/11/2017,ENTERPRISE,01452 419222,,GL2 5HY,REDACTED,556*********3063,3405,ENTERPRISE RENT-A-CAR,425.04,Pound Sterling (826),1.000000000,425.04,Debit,05230657311380073391375,02/12/2017,GLOUCESTER CC
Gloucester City Council,23UE,Head of Cultural and Trading,MT003,External Training Course Fees,0550,08/11/2017,07/11/2017,TICKETSOURCE LTD,0333 666 4466,,CF64 2AA,REDACTED,556*********3063,7922,"THEATRICAL PRODUCERS (EXCEPT MOTION PICTURES), TICKET AGENCIES",16,Pound Sterling (826),1.000000000,16,Debit,85481477312000842970602,02/12/2017,GLOUCESTER CC
Gloucester City Council,23UE,Docks Complex - Services,AM006,General Supplies/Materials,3025,13/11/2017,10/11/2017,MAP UK,BRAINTREE,,CM77 6TE,REDACTED,556*********3063,5251,HARDWARE STORES,25.78,Pound Sterling (826),1.000000000,25.78,Debit,55504437314174112274314,02/12/2017,GLOUCESTER CC
Gloucester City Council,23UE,Business Transformation,BI006,General Supplies/Materials,3025,13/11/2017,09/11/2017,AMAZON SVCS EU-UK AMAZ,AMAZON.CO.UK,LUX,,REDACTED,556*********3063,5942,BOOK STORES,24.74,Pound Sterling (826),1.000000000,24.74,Debit,85389247314744892069629,02/12/2017,GLOUCESTER CC
Gloucester City Council,23UE,Docks Complex - Services,AM006,Hospitality & Refreshments,3104,15/11/2017,14/11/2017,SAINSBURYS 2221,GLOUCESTER,GBR,GL2 5SA,REDACTED,556*********3063,5411,"GROCERY STORES, SUPERMARKETS",9.65,Pound Sterling (826),1.000000000,9.65,Debit,25425157319070096223749,02/12/2017,GLOUCESTER CC
Gloucester City Council,23UE,Vehicles,CT002,Hire of Vehicles/Plant,2301,23/11/2017,22/11/2017,ENTERPRISE,01452 419222,,GL2 5HY,REDACTED,556*********3063,3405,ENTERPRISE RENT-A-CAR,318.78,Pound Sterling (826),1.000000000,318.78,Debit,05230657326100073617832,02/12/2017,GLOUCESTER CC
Gloucester City Council,23UE,Financial Services,FS004,Public Transport - Staff,2402,23/11/2017,21/11/2017,GWR WEBSALES,SWINDON,,SN1 1HL,REDACTED,556*********3063,4112,PASSENGER RAILWAYS,20.6,Pound Sterling (826),1.000000000,20.6,Debit,55504437326160318250386,02/12/2017,GLOUCESTER CC
Gloucester City Council,23UE,Financial Services,FS004,Public Transport - Staff,2402,23/11/2017,22/11/2017,GWR WEBSALES,SWINDON,,SN1 1HL,REDACTED,556*********3063,4112,PASSENGER RAILWAYS,33.8,Pound Sterling (826),1.000000000,33.8,Debit,55504437326160318287362,02/12/2017,GLOUCESTER CC
Gloucester City Council,23UE,Off Street Car Parks,PA001,Building Repairs and Maintenance,1001,27/11/2017,24/11/2017,WWW.SLINGSBY.COM,INTERNET,GBR,BD17 7LW,REDACTED,556*********3063,5085,INDUSTRIAL SUPPLIES NOT ELSEWHERE CLASSI,170.28,Pound Sterling (826),1.000000000,170.28,Debit,35425157329050153873500,02/12/2017,GLOUCESTER CC
Gloucester City Council,23UE,Financial Services,FS004,External Training Course Fees,0550,30/11/2017,29/11/2017,REED BUSINESS SCHO,LITTLE COMPTO,,GL56 0RZ,REDACTED,556*********3063,8220,"COLLEGES, UNIVERSITIES, PROFESSIONAL SCHOOLS AND JUNIOR COLLEGES",105.6,Pound Sterling (826),1.000000000,105.6,Debit,55504437333110277548412,02/12/2017,GLOUCESTER CC
